fUSD/lending_fUSD_20241003
["ID","MTS","AMOUNT","RATE_DAILY","PERIOD"]
[339787602,1727987483004,-708.6,0.00033698,120]
[339787603,1727987483014,-500.0,0.00033698,120]
[339787604,1727987483024,-560.83,0.00033698,120]
[339787605,1727987483033,-500.0,0.00033698,120]
[339787606,1727987483042,-610.78,0.00033698,120]
[339787607,1727987483052,-645.2098584,0.00033698,120]
[339787608,1727987483062,-1249.01,0.00033698,120]
[339787609,1727987483072,-500.0,0.00033698,120]
[339787610,1727987483081,-500.0,0.00033698,120]
[339787611,1727987483091,-500.0,0.00033698,120]
[339787612,1727987483100,-151.0,0.00033698,7]
[339787613,1727987483109,-331.57721817,0.00033698,120]
[339787614,1727987483119,-1225.26,0.00033698,120]
[339787615,1727987483128,-282.741001,0.00033698,7]
[339787616,1727987483137,-500.0,0.00033698,120]
[339787617,1727987483149,-911.79,0.00033698,120]
[339787618,1727987483158,-817.82,0.00033698,120]
[339787619,1727987483168,-500.0,0.00033698,120]
[339787620,1727987483178,-500.0,0.00033698,120]
[339787621,1727987483187,-500.0,0.00033698,120]
[339787622,1727987483497,-517.59,0.00033698,120]
[339787623,1727987483510,-1292.49,0.00033698,7]
[339787624,1727987483520,-500.0,0.00033698,120]
[339787625,1727987483530,-500.0,0.00033698,120]
[339787626,1727987483539,-500.0,0.00033698,120]
[339787627,1727987483548,-500.0,0.00033698,120]
[339787628,1727987483558,-762.72,0.00033698,120]
[339787629,1727987483568,-1396.71,0.00033698,120]
[339787630,1727987483577,-1184.87,0.00033698,120]
[339787631,1727987483586,-1701.57,0.00033698,120]
[339787632,1727987483596,-714.2,0.00033698,120]
[339787633,1727987483605,-500.0,0.00033698,120]
[339787634,1727987483615,-500.0,0.00033698,120]
[339787635,1727987483624,-500.0,0.00033698,120]
[339787636,1727987483634,-1713.42,0.00033698,120]
[339787637,1727987483643,-676.51,0.00033698,120]
[339787638,1727987483655,-543.4,0.00033698,120]
[339787639,1727987483664,-615.69,0.00033698,120]
[339787640,1727987483674,-675.57,0.00033698,120]
[339787641,1727987483683,-822.0,0.00033698,120]
[339787642,1727987483693,-781.4,0.00033698,120]
[339787643,1727987483702,-500.0,0.00033698,120]
[339787644,1727987483711,-500.0,0.00033698,120]
[339787645,1727987483721,-747.69,0.00033698,120]
[339787646,1727987483730,-500.0,0.00033698,120]
[339787647,1727987483740,-617.77,0.00033698,120]
[339787648,1727987483749,-500.0,0.00033698,120]
[339787649,1727987483759,-911.34,0.00033698,120]
[339787650,1727987483768,-500.0,0.00033698,120]
[339787651,1727987483778,-500.0,0.00033698,120]
[339787652,1727987483788,-151.0,0.00033698,7]
[339787653,1727987483797,-500.0,0.00033698,120]
[339787654,1727987483807,-500.0,0.00033698,120]
[339787655,1727987483816,-1099.61,0.00033698,120]
[339787656,1727987483826,-500.0,0.00033698,120]
[339787657,1727987483836,-500.0,0.00033698,120]
[339787658,1727987483846,-500.0,0.00033698,120]
[339787659,1727987483859,-1245.73,0.00033698,120]
[339787660,1727987483868,-605.0,0.00033698,120]
[339787661,1727987483878,-570.35,0.00033698,120]
[339787662,1727987483887,-614.52,0.00033698,120]
[339787663,1727987483898,-500.0,0.00033698,120]
[339787664,1727987483908,-806.75,0.00033698,120]
[339787665,1727987483918,-761.4,0.00033698,120]
[339787666,1727987483928,-500.0,0.00033698,120]
[339787667,1727987483938,-500.0,0.00033698,120]
[339787668,1727987483947,-500.0,0.00033698,120]
[339787669,1727987483956,-1016.56,0.00033698,120]
[339787670,1727987483966,-500.0,0.00033698,120]
[339787671,1727987483975,-500.0,0.00033698,120]
[339787672,1727987483985,-500.0,0.00033698,120]
[339787673,1727987483994,-908.19,0.00033698,120]
[339787674,1727987484004,-500.0,0.00033698,120]
[339787675,1727987484014,-500.0,0.00033698,120]
[339787676,1727987484023,-500.0,0.00033698,120]
[339787677,1727987484033,-650.02,0.00033698,120]
[339787678,1727987484042,-2907.54,0.00033698,120]
[339787679,1727987484052,-380.01576842,0.00033698,120]
[339787680,1727987484061,-1955.84,0.00033698,120]
[339787681,1727987484071,-666.23,0.00033698,120]
[339787682,1727987484081,-500.0,0.00033698,5]
[339787683,1727987484090,-500.0,0.00033698,120]
[339787684,1727987484100,-1768.990651,0.00033698,7]
[339787685,1727987484109,-619.0,0.00033698,120]
[339787686,1727987484119,-1476.07,0.00033698,120]
[339787687,1727987484128,-1768.990651,0.00033698,7]
[339787688,1727987484138,-500.0,0.00033698,120]
[339787689,1727987484150,-200.0,0.00033698,7]
[339787690,1727987484166,-580.92,0.00033698,120]
[339787691,1727987484176,-664.13,0.00033698,120]
[339787692,1727987484185,-559.23,0.00033698,120]
[339787693,1727987484194,-500.0,0.00033698,120]
[339787694,1727987484205,-391.01540091,0.00033698,120]
[339787695,1727987484214,-682.12,0.00033698,120]
[339787696,1727987484223,-662.07,0.00033698,120]
[339787697,1727987484233,-500.0,0.00033698,120]
[339787698,1727987484243,-500.0,0.00033698,120]
[339787699,1727987484252,-500.0,0.00033698,120]
[339787700,1727987484262,-500.0,0.00033698,120]
[339787701,1727987484271,-1017.64,0.00033698,120]
[339787702,1727987484281,-1843.32,0.00033698,120]
[339787703,1727987484290,-929.85,0.00033698,120]
[339787704,1727987484300,-500.0,0.00033698,120]
[339787705,1727987484310,-903.96,0.00033698,120]
[339787706,1727987484319,-500.0,0.00033698,120]
[339787707,1727987484329,-638.25690971,0.00033698,120]
[339787708,1727987484339,-1244.9,0.00033698,120]
[339787709,1727987484349,-236.69686329,0.00033698,120]
[339787710,1727987484358,-2059.5,0.00033698,120]
[339787711,1727987484367,-1208.85,0.00033698,120]
[339787712,1727987484377,-500.0,0.00033698,120]
[339787713,1727987484387,-1392.18,0.00033698,120]
[339787714,1727987484398,-500.0,0.00033698,120]
[339787715,1727987484407,-1754.22,0.00033698,120]
[339787716,1727987484416,-573.43502313,0.00033698,120]
[339787717,1727987484426,-500.0,0.00033698,120]
[339787718,1727987484435,-3096.26,0.00033698,120]
[339787719,1727987484446,-838.34,0.00033698,120]
[339787720,1727987484456,-500.0,0.00033698,120]
[339787721,1727987484465,-767.37,0.00033698,120]
[339787722,1727987484475,-500.0,0.00033698,120]
[339787723,1727987484485,-801.012603,0.00033698,7]
[339787724,1727987484494,-1262.93,0.00033698,120]
[339787725,1727987484504,-500.0,0.00033698,120]
[339787726,1727987484514,-801.012603,0.00033698,7]
[339787727,1727987484524,-900.49,0.00033698,120]
[339787728,1727987484533,-871.88,0.00033698,120]
[339787729,1727987484543,-546.33,0.00033698,120]
[339787730,1727987484553,-1915.72,0.00033698,120]
[339787731,1727987484563,-500.0,0.00033698,120]
[339787732,1727987484572,-542.05,0.00033698,120]
[339787733,1727987484582,-500.0,0.00033698,120]
[339787734,1727987484592,-1246.58,0.00033698,120]
[339787735,1727987484601,-755.2,0.00033698,120]
[339787736,1727987484611,-500.0,0.00033698,120]
[339787737,1727987484621,-515.39,0.00033698,120]
[339787738,1727987484631,-184.3816405,0.00033698,120]
[339787739,1727987484641,-1449.61,0.00033698,120]
[339787740,1727987484652,-500.0,0.00033698,120]
[339787741,1727987484662,-615.97,0.00033698,120]
[339787742,1727987484673,-500.0,0.00033698,120]
[339787743,1727987484684,-500.0,0.00033698,120]
[339787744,1727987484693,-500.0,0.00033698,120]
[339787745,1727987484703,-828.98,0.00033698,120]
[339787746,1727987484713,-522.48,0.00033698,120]
[339787747,1727987484722,-500.0,0.00033698,120]
[339787748,1727987484732,-500.0,0.00033698,120]
[339787749,1727987484742,-769.93,0.00033698,120]
[339787750,1727987484751,-500.0,0.00033698,120]
[339787751,1727987484760,-1535.42,0.00033698,120]
[339787752,1727987484770,-500.0,0.00033698,120]
[339787753,1727987484780,-692.01,0.00033698,120]
[339787754,1727987484789,-608.97371105,0.00033698,120]
[339787755,1727987484799,-500.0,0.00033698,120]
[339787756,1727987484810,-617.57,0.00033698,120]
[339787757,1727987484820,-500.0,0.00033698,120]
[339787758,1727987484829,-500.0,0.00033698,120]
[339787759,1727987484841,-500.0,0.00033698,120]
[339787760,1727987484851,-500.0,0.00033698,120]
[339787761,1727987484861,-1322.47,0.00033698,120]
[339787762,1727987484870,-775.222596,0.00033698,7]
[339787763,1727987484880,-678.3,0.00033698,120]
[339787764,1727987484890,-3041.51,0.00033698,120]
[339787765,1727987484901,-1088.33,0.00033698,120]
[339787766,1727987484912,-685.28,0.00033698,120]
[339787767,1727987484922,-500.0,0.00033698,120]
[339787768,1727987484932,-775.222596,0.00033698,7]
[339787769,1727987484943,-809.97,0.00033698,120]
[339787770,1727987484953,-307.32233183,0.00033698,120]
[339787771,1727987484963,-617.35,0.00033698,120]
[339787772,1727987484973,-500.0,0.00033698,120]
[339787773,1727987484982,-500.0,0.00033698,120]
[339787774,1727987484992,-500.0,0.00033698,120]
[339787775,1727987485002,-504.49,0.00033698,120]
[339787776,1727987485011,-1000.0,0.00033698,120]
[339787777,1727987485021,-2582.55,0.00033698,14]
[339787778,1727987485030,-821.22,0.00033698,120]
[339787779,1727987485041,-2036.76,0.00033698,2]
[339787780,1727987485051,-500.0,0.00033698,120]
[339787781,1727987485060,-500.0,0.00033698,120]
[339787782,1727987485070,-752.83,0.00033698,120]
[339787783,1727987485080,-1192.92,0.00033698,120]
[339787784,1727987485089,-500.0,0.00033698,120]
[339787785,1727987485099,-500.0,0.00033698,120]
[339787786,1727987485108,-506.61282612,0.00033698,120]
[339787787,1727987485118,-1822.29,0.00033698,120]
[339787788,1727987485128,-696.33,0.00033698,120]
[339787789,1727987485137,-2184.089244,0.00033698,7]
[339787790,1727987485149,-500.0,0.00033698,120]
[339787791,1727987485159,-500.0,0.00033698,120]
[339787792,1727987485169,-1595.23,0.00033698,120]
[339787793,1727987485178,-500.0,0.00033698,120]
[339787794,1727987485188,-1676.96,0.00033698,120]
[339787795,1727987485197,-2184.089244,0.00033698,7]
[339787796,1727987485207,-602.51,0.00033698,120]
[339787797,1727987485217,-1430.65,0.00033698,120]
[339787798,1727987485226,-500.0,0.00033698,120]
[339787799,1727987485235,-10000.0,0.00033698,7]
[339787800,1727987485245,-500.0,0.00033698,120]
[339787801,1727987485255,-1022.58,0.00033698,120]
[339787802,1727987485264,-534.34,0.00033698,120]
[339787803,1727987485273,-572.51,0.00033698,120]
[339787804,1727987485283,-10000.0,0.00033698,7]
[339787805,1727987485293,-500.0,0.00033698,120]
[339787806,1727987485303,-500.0,0.00033698,120]
[339787807,1727987485313,-743.36,0.00033698,120]
[339787808,1727987485322,-500.0,0.00033698,120]
[339787809,1727987485331,-722.75,0.00033698,120]
[339787810,1727987485341,-10000.0,0.00033698,7]
[339787811,1727987485350,-500.0,0.00033698,120]
[339787812,1727987485360,-2933.87,0.00033698,120]
[339787813,1727987485369,-891.75,0.00033698,120]
[339787814,1727987485379,-500.0,0.00033698,120]
[339787815,1727987485389,-734.12,0.00033698,120]
[339787816,1727987485402,-10000.0,0.00033698,7]
[339787817,1727987485411,-500.0,0.00033698,120]
[339787818,1727987485421,-500.0,0.00033698,120]
[339787819,1727987485430,-500.0,0.00033698,120]
[339787820,1727987485440,-500.0,0.00033698,120]
[339787821,1727987485450,-830.44,0.00033698,120]
[339787822,1727987485460,-10000.0,0.00033698,7]
[339787823,1727987485469,-2736.92,0.00033698,120]
[339787824,1727987485479,-2840.63,0.00033698,120]
[339787825,1727987485489,-1668.6,0.00033698,120]
[339787826,1727987485498,-963.2,0.00033698,120]
[339787827,1727987485508,-3064.64,0.00033698,120]
[339787828,1727987485517,-500.0,0.00033698,120]
[339787829,1727987485526,-500.0,0.00033698,120]
[339787830,1727987485536,-500.0,0.00033698,120]
[339787831,1727987485546,-500.0,0.00033698,120]
[339787832,1727987485555,-895.53,0.00033698,120]
[339787833,1727987485564,-500.0,0.00033698,120]
[339787834,1727987485574,-594.854743,0.00033698,7]
[339787835,1727987485583,-603.25,0.00033698,120]
[339787836,1727987485593,-893.66,0.00033698,120]
[339787837,1727987485602,-1265.22,0.00033698,120]
[339787838,1727987485612,-648.93,0.00033698,120]
[339787839,1727987485622,-594.854743,0.00033698,7]
[339787840,1727987485631,-702.69,0.00033698,120]
[339787841,1727987485640,-625.95,0.00033698,120]
[339787842,1727987485651,-912.75,0.00033698,120]
[339787843,1727987485661,-500.0,0.00033698,120]
[339787844,1727987485671,-500.0,0.00033698,120]
[339787845,1727987485680,-292.45427245,0.00033698,120]
[339787846,1727987485690,-500.0,0.00033698,120]
[339787847,1727987485699,-500.0,0.00033698,120]
[339787848,1727987485709,-500.0,0.00033698,120]
[339787849,1727987485718,-500.0,0.00033698,120]
[339787850,1727987485727,-589.87,0.00033698,120]
[339787851,1727987485737,-500.0,0.00033698,120]
[339787852,1727987485747,-904.15,0.00033698,120]
[339787853,1727987485756,-809.38,0.00033698,120]
[339787854,1727987485766,-500.0,0.00033698,120]
[339787855,1727987485775,-1583.67,0.00033698,120]
[339787856,1727987485785,-500.0,0.00033698,120]
[339787857,1727987485794,-500.0,0.00033698,120]
[339787858,1727987485804,-2849.48,0.00033698,120]
[339787859,1727987485814,-1559.78,0.00033698,120]
[339787860,1727987485823,-500.0,0.00033698,2]
[339787861,1727987485832,-526.9,0.00033698,120]
[339787862,1727987485842,-500.0,0.00033698,120]
[339787863,1727987485853,-522.66,0.00033698,120]
[339787864,1727987485936,-887.97,0.00033698,120]
[339787865,1727987485946,-608.69,0.00033698,120]
[339787866,1727987485955,-1196.23,0.00033698,120]
[339787867,1727987485964,-500.0,0.00033698,120]
[339787868,1727987485973,-1435.23,0.00033698,120]
[339787869,1727987485983,-871.817102,0.00033698,7]
[339787870,1727987485992,-1891.17,0.00033698,120]
[339787871,1727987486002,-151.0,0.00033698,7]
[339787872,1727987486012,-734.62,0.00033698,120]
[339787873,1727987486021,-500.0,0.00033698,5]
[339787874,1727987486030,-1907.44,0.00033698,120]
[339787875,1727987486040,-871.817102,0.00033698,7]
[339787876,1727987486049,-954.92,0.00033698,30]
[339787877,1727987486058,-760.37,0.00033698,120]
[339787878,1727987486068,-500.0,0.00033698,120]
[339787879,1727987486077,-1389.631609,0.00033698,7]
[339787880,1727987486087,-1267.83,0.00033698,120]
[339787881,1727987486096,-500.0,0.00033698,120]
[339787882,1727987486106,-500.0,0.00033698,120]
[339787883,1727987486115,-1389.631609,0.00033698,7]
[339787884,1727987486125,-3152.28,0.00033698,120]
[339787885,1727987486134,-2240.67,0.00033698,120]
[339787886,1727987486143,-500.0,0.00033698,120]
[339787887,1727987486155,-692.31,0.00033698,120]
[339787888,1727987486165,-4273.85,0.00033698,2]
[339787889,1727987486174,-500.0,0.00033698,120]
[339787890,1727987486183,-1375.15,0.00033698,120]
[339787891,1727987486192,-566.42,0.00033698,120]
[339787892,1727987486202,-500.0,0.00033698,120]
[339787893,1727987486212,-1352.94,0.00033698,120]
[339787894,1727987486221,-2143.59,0.00033698,120]
[339787895,1727987486230,-197.419055,0.00033698,7]
[339787896,1727987486240,-500.0,0.00033698,120]
[339787897,1727987486249,-500.0,0.00033698,120]
[339787898,1727987486259,-197.419055,0.00033698,7]
[339787899,1727987486268,-500.0,0.00033698,120]
[339787900,1727987486277,-500.0,0.00033698,120]
[339787901,1727987486287,-366.010612,0.00033698,7]
[339787902,1727987486297,-2552.25,0.00033698,120]
[339787903,1727987486307,-807.0,0.00033698,120]
[339787904,1727987486317,-1929.43,0.00033698,120]
[339787905,1727987486327,-500.0,0.00033698,120]
[339787906,1727987486336,-500.0,0.00033698,120]
[339787907,1727987486345,-687.7,0.00033698,120]
[339787908,1727987486355,-366.010612,0.00033698,7]
[339787909,1727987486364,-393.80474447,0.00033698,120]
[339787910,1727987486374,-500.0,0.00033698,120]
[339787911,1727987486383,-685.66,0.00033698,120]
[339787912,1727987486392,-500.0,0.00033698,120]
[339787913,1727987486406,-500.0,0.00033698,120]
[339787914,1727987486415,-500.0,0.00033698,120]
[339787915,1727987486425,-500.0,0.00033698,120]
[339787916,1727987486434,-426.78146,0.00033698,7]
[339787917,1727987486444,-1124.73,0.00033698,120]
[339787918,1727987486454,-500.0,0.00033698,120]
[339787919,1727987486463,-687.49,0.00033698,120]
[339787920,1727987486473,-426.78146,0.00033698,7]
[339787921,1727987486482,-1267.04,0.00033698,120]
[339787922,1727987486492,-1073.96,0.00033698,120]
[339787923,1727987486502,-515.88,0.00033698,120]
[339787924,1727987486512,-500.0,0.00033698,120]
[339787925,1727987486521,-924.47,0.00033698,120]
[339787926,1727987486530,-500.0,0.00033698,120]
[339787927,1727987486540,-3842.317748,0.00033698,7]
[339787928,1727987486549,-3529.62,0.00033698,120]
[339787929,1727987486558,-500.0,0.00033698,120]
[339787930,1727987486569,-500.0,0.00033698,120]
[339787931,1727987486578,-3842.317748,0.00033698,7]
[339787932,1727987486588,-500.0,0.00033698,120]
[339787933,1727987486598,-2122.92,0.00033698,120]
[339787934,1727987486607,-500.0,0.00033698,120]
[339787935,1727987486616,-1443.8,0.00033698,120]
[339787936,1727987486626,-500.0,0.00033698,120]
[339787937,1727987486635,-598.1,0.00033698,120]
[339787938,1727987486645,-583.93,0.00033698,120]
[339787939,1727987486658,-1130.17,0.00033698,120]
[339787940,1727987486667,-500.0,0.00033698,120]
[339787941,1727987486677,-500.0,0.00033698,120]
[339787942,1727987486686,-500.0,0.00033698,120]
[339787943,1727987486695,-502.83456381,0.00033698,120]
[339787944,1727987486705,-512.25,0.00033698,120]
[339787945,1727987486715,-523.81814055,0.00033698,120]
[339787946,1727987486724,-739.66,0.00033698,120]
[339787947,1727987486733,-500.0,0.00033698,120]
[339787948,1727987486742,-2221.7,0.00033698,120]
[339787949,1727987486751,-633.22189898,0.00033698,120]
[339787950,1727987486762,-500.0,0.00033698,120]
[339787951,1727987486772,-500.0,0.00033698,120]
[339787952,1727987486781,-500.0,0.00033698,120]
[339787953,1727987486791,-500.0,0.00033698,120]
[339787954,1727987486800,-878.47,0.00033698,120]
[339787955,1727987486810,-753.47,0.00033698,120]
[339787956,1727987486819,-2105.23,0.00033698,120]
[339787957,1727987486828,-500.0,0.00033698,120]
[339787958,1727987486840,-880.23,0.00033698,120]
[339787959,1727987486850,-500.0,0.00033698,120]
[339787960,1727987486860,-150.0,0.00033698,120]
[339787961,1727987486874,-1101.24,0.00033698,120]
[339787962,1727987486885,-500.0,0.00033698,120]
[339787963,1727987486895,-1000.0,0.00033698,120]
[339787964,1727987486908,-594.49,0.00033698,120]
[339787965,1727987486918,-500.0,0.00033698,120]
[339787966,1727987486930,-1746.33,0.00033698,120]
[339787967,1727987486940,-500.0,0.00033698,120]
[339787968,1727987486950,-500.0,0.00033698,120]
[339787969,1727987486961,-983.59,0.00033698,120]
[339787970,1727987486971,-1535.26,0.00033698,120]
[339787971,1727987486980,-754.45,0.00033698,120]
[339787972,1727987486989,-889.14,0.00033698,120]
[339787973,1727987486999,-3156.06,0.00033698,120]
[339787974,1727987487008,-500.0,0.00033698,120]
[339787975,1727987487018,-2375.19,0.00033698,120]
[339787976,1727987487028,-640.32,0.00033698,120]
[339787977,1727987487037,-500.0,0.00033698,120]
[339787978,1727987487046,-500.0,0.00033698,120]
[339787979,1727987487055,-500.0,0.00033698,120]
[339787980,1727987487065,-652.15,0.00033698,120]
[339787981,1727987487074,-580.84,0.00033698,120]
[339787982,1727987487083,-2171.15,0.00033698,120]
[339787983,1727987487093,-970.9,0.00033698,120]
[339787984,1727987487104,-500.0,0.00033698,120]
[339787985,1727987487113,-576.98,0.00033698,120]
[339787986,1727987487122,-2322.76,0.00033698,120]
[339787987,1727987487131,-500.0,0.00033698,120]
[339787988,1727987487141,-283.77945909,0.00033698,120]
[339787989,1727987487153,-2446.1,0.00033698,120]
[339787990,1727987487162,-500.0,0.00033698,120]
[339787991,1727987487172,-500.0,0.00033698,120]
[339787992,1727987487181,-569.39,0.00033698,120]
[339787993,1727987487191,-500.0,0.00033698,120]
[339787994,1727987487200,-865.83,0.00033698,120]
[339787995,1727987487210,-500.0,0.00033698,120]
[339787996,1727987487219,-500.0,0.00033698,120]
[339787997,1727987487229,-559.14,0.00033698,120]
[339787998,1727987487239,-526.15,0.00033698,120]
[339787999,1727987487248,-500.0,0.00033698,120]
[339788000,1727987487258,-500.0,0.00033698,120]
[339788001,1727987487267,-500.0,0.00033698,120]
[339788002,1727987487277,-500.0,0.00033698,120]
[339788003,1727987487286,-1022.47,0.00033698,120]
[339788004,1727987487295,-500.0,0.00033698,120]
[339788005,1727987487305,-293.0564061,0.00033698,120]
[339788006,1727987487314,-1404.02,0.00033698,120]
[339788007,1727987487323,-500.0,0.00033698,120]
[339788008,1727987487333,-641.91,0.00033698,120]
[339788009,1727987487342,-500.0,0.00033698,120]
[339788010,1727987487352,-500.0,0.00033698,120]
[339788011,1727987487362,-926.29,0.00033698,120]
[339788012,1727987487371,-796.9,0.00033698,120]
[339788013,1727987487381,-2021.14,0.00033698,120]
[339788014,1727987487391,-500.0,0.00033698,120]
[339788015,1727987487403,-500.0,0.00033698,120]
[339788016,1727987487412,-500.0,0.00033698,120]
[339788017,1727987487421,-3420.05,0.00033698,120]
[339788018,1727987487430,-920.88,0.00033698,120]
[339788019,1727987487440,-1014.09,0.00033698,120]
[339788020,1727987487449,-500.0,0.00033698,120]
[339788021,1727987487458,-151.0,0.00033698,7]
[339788022,1727987487467,-585.28,0.00033698,120]
[339788023,1727987487476,-500.0,0.00033698,120]
[339788024,1727987487485,-1372.22,0.00033698,120]
[339788025,1727987487495,-501.73,0.00033698,120]
[339788026,1727987487504,-2342.53,0.00033698,120]
[339788027,1727987487513,-500.0,0.00033698,120]
[339788028,1727987487523,-849.67,0.00033698,120]
[339788029,1727987487532,-503.33,0.00033698,120]
[339788030,1727987487541,-619.95,0.00033698,120]
[339788031,1727987487550,-650.32,0.00033698,120]
[339788032,1727987487560,-151.0,0.00033698,7]
[339788033,1727987487569,-4513.04,0.00033698,120]
[339788034,1727987487579,-500.0,0.00033698,120]
[339788035,1727987487588,-697.86,0.00033698,120]
[339788036,1727987487597,-1906.45,0.00033698,120]
[339788037,1727987487606,-500.0,0.00033698,120]
[339788038,1727987487616,-269.982589,0.00033698,7]
[339788039,1727987487625,-500.0,0.00033698,120]
[339788040,1727987487634,-500.0,0.00033698,120]
[339788041,1727987487643,-1342.8,0.00033698,120]
[339788042,1727987487655,-4469.7,0.00033698,120]
[339788043,1727987487664,-2820.31,0.00033698,120]
[339788044,1727987487673,-269.982589,0.00033698,7]
[339788045,1727987487682,-586.293285,0.00033698,7]
[339788046,1727987487691,-1714.59,0.00033698,120]
[339788047,1727987487701,-586.293285,0.00033698,7]
[339788048,1727987487710,-1567.97,0.00033698,120]
[339788049,1727987487719,-271.6380212,0.00033698,120]
[339788050,1727987487728,-858.96,0.00033698,120]
[339788051,1727987487738,-1071.24,0.00033698,120]
[339788052,1727987487747,-500.0,0.00033698,120]
[339788053,1727987487756,-500.0,0.00033698,120]
[339788054,1727987487765,-1083.26,0.00033698,120]
[339788055,1727987487774,-1923.73,0.00033698,120]
[339788056,1727987487783,-3953.73,0.00033698,120]
[339788057,1727987487792,-500.0,0.00033698,120]
[339788058,1727987487802,-646.54,0.00033698,120]
[339788059,1727987487811,-1541.86,0.00033698,120]
[339788060,1727987487820,-500.0,0.00033698,120]
[339788061,1727987487829,-825.35,0.00033698,120]
[339788062,1727987487839,-2326.51,0.00033698,120]
[339788063,1727987487849,-160.0,0.00033698,7]
[339788064,1727987487860,-1401.87,0.00033698,120]
[339788065,1727987487869,-500.0,0.00033698,120]
[339788066,1727987487878,-8162.3,0.00033698,120]
[339788067,1727987487887,-500.0,0.00033698,120]
[339788068,1727987487897,-500.0,0.00033698,120]
[339788069,1727987487914,-2202.86,0.00033698,3]
[339788070,1727987487923,-160.0,0.00033698,7]
[339788071,1727987487933,-1721.6,0.00033698,120]
[339788072,1727987487942,-500.0,0.00033698,120]
[339788073,1727987487951,-500.0,0.00033698,120]
[339788074,1727987487960,-1824.09,0.00033698,120]
[339788075,1727987487968,-500.0,0.00033698,120]
[339788076,1727987487979,-500.0,0.00033698,120]
[339788077,1727987487988,-797.25,0.00033698,120]
[339788078,1727987487997,-3694.14,0.00033698,120]
[339788079,1727987488006,-648.29,0.00033698,120]
[339788080,1727987488015,-1962.84,0.00033698,120]
[339788081,1727987488025,-500.0,0.00033698,120]
[339788082,1727987488034,-770.99,0.00033698,120]
[339788083,1727987488043,-1812.58,0.00033698,120]
[339788084,1727987488053,-1106.97,0.00033698,120]
[339788085,1727987488062,-1103.780855,0.00033698,7]
[339788086,1727987488071,-995.24,0.00033698,120]
[339788087,1727987488080,-1533.42,0.00033698,120]
[339788088,1727987488089,-500.0,0.00033698,120]
[339788089,1727987488098,-1245.45,0.00033698,120]
[339788090,1727987488108,-205.761716,0.00033698,7]
[339788091,1727987488117,-1103.780855,0.00033698,7]
[339788092,1727987488126,-2708.28,0.00033698,120]
[339788093,1727987488135,-1028.68,0.00033698,120]
[339788094,1727987488145,-919.76,0.00033698,120]
[339788095,1727987488155,-2392.87,0.00033698,120]
[339788096,1727987488164,-500.0,0.00033698,120]
[339788097,1727987488174,-500.0,0.00033698,120]
[339788098,1727987488183,-205.761716,0.00033698,7]
[339788099,1727987488192,-649.29350432,0.00033698,120]
[339788100,1727987488202,-500.0,0.00033698,120]
[339788101,1727987488211,-1219.91,0.00033698,120]